[Event "Senior Men Russian Championship 2022_HL"]
[Site "Saint-Petersburg, Russia"]
[Date "2022.09.27"]
[Round "4.6"]
[White "Lisenko, Alexander V"]
[Black "Kozlov, Oleg"]
[Result "0-1"]
[TimeControl "40+30"]
[WhiteElo "2307"]
[BlackElo "2279"]

1. c4 {[%clk 01:30:56]} {[%emt 00:00:03]} c6 {[%clk 01:30:53]} {[%emt
00:00:09]} 2. Nf3 {[%clk 01:30:52]} {[%emt 00:00:33]} d5 {[%clk 01:31:16]}
{[%emt 00:00:07]} 3. b3 {[%clk 01:31:17]} {[%emt 00:00:05]} Bf5 {[%clk
01:31:21]} {[%emt 00:00:25]} 4. Bb2 {[%clk 01:31:36]} {[%emt 00:00:11]} e6
{[%clk 01:31:45]} {[%emt 00:00:07]} 5. g3 {[%clk 01:31:48]} {[%emt 00:00:16]}
h6 {[%clk 01:30:30]} {[%emt 00:01:46]} 6. Bg2 {[%clk 01:32:11]} {[%emt
00:00:06]} Nd7 {[%clk 01:30:51]} {[%emt 00:00:10]} 7. O-O {[%clk 01:32:33]}
{[%emt 00:00:08]} Ngf6 {[%clk 01:31:17]} {[%emt 00:00:04]} 8. d3 {[%clk
01:32:44]} {[%emt 00:00:19]} Be7 {[%clk 01:31:28]} {[%emt 00:00:19]} 9. Nbd2
{[%clk 01:32:16]} {[%emt 00:00:57]} O-O {[%clk 01:31:47]} {[%emt 00:00:12]} 10.
a3 {[%clk 01:29:15]} {[%emt 00:03:31]} a5 {[%clk 01:31:49]} {[%emt 00:00:29]}
11. Rc1 {[%clk 01:28:29]} {[%emt 00:01:14]} Bh7 {[%clk 01:28:18]} {[%emt
00:04:02]} 12. Rc2 {[%clk 01:28:21]} {[%emt 00:00:38]} Re8 {[%clk 01:28:02]}
{[%emt 00:00:46]} 13. Qa1 {[%clk 01:28:04]} {[%emt 00:00:46]} Bf8 {[%clk
01:28:26]} {[%emt 00:00:06]} 14. Ne5 {[%clk 01:25:02]} {[%emt 00:03:33]} Nxe5
{[%clk 01:27:48]} {[%emt 00:01:08]} 15. Bxe5 {[%clk 01:25:25]} {[%emt
00:00:07]} Nd7 {[%clk 01:28:10]} {[%emt 00:00:08]} 16. Bc3 {[%clk 01:18:17]}
{[%emt 00:07:38]} Qe7 {[%clk 01:20:32]} {[%emt 00:08:08]} 17. Ra2 {[%clk
01:16:53]} {[%emt 00:01:54]} Qd6 {[%clk 00:49:57]} {[%emt 00:31:05]} 18. b4
{[%clk 01:09:26]} {[%emt 00:07:57]} a4 {[%clk 00:50:18]} {[%emt 00:00:09]} 19.
c5 {[%clk 00:57:29]} {[%emt 00:12:27]} Qc7 {[%clk 00:50:25]} {[%emt 00:00:24]}
20. e4 {[%clk 00:55:26]} {[%emt 00:02:33]} Nb8 {[%clk 00:42:41]} {[%emt
00:08:14]} 21. Re1 {[%clk 00:52:03]} {[%emt 00:03:52]} Na6 {[%clk 00:42:58]}
{[%emt 00:00:15]} 22. Nf3 {[%clk 00:36:04]} {[%emt 00:16:28]} Qd8 {[%clk
00:42:28]} {[%emt 00:01:00]} 23. Rd2 {[%clk 00:34:18]} {[%emt 00:02:16]} Nc7
{[%clk 00:42:43]} {[%emt 00:00:15]} 24. e5 {[%clk 00:33:03]} {[%emt 00:01:44]}
Nb5 {[%clk 00:42:25]} {[%emt 00:00:50]} 25. Bb2 {[%clk 00:33:23]} {[%emt
00:00:09]} b6 {[%clk 00:35:46]} {[%emt 00:07:09]} 26. d4 {[%clk 00:28:02]}
{[%emt 00:05:51]} Be7 {[%clk 00:24:02]} {[%emt 00:12:14]} 27. cxb6 {[%clk
00:24:01]} {[%emt 00:04:30]} Qxb6 {[%clk 00:24:14]} {[%emt 00:00:19]} 28. Bh3
{[%clk 00:21:46]} {[%emt 00:02:45]} Be4 {[%clk 00:22:51]} {[%emt 00:01:53]} 29.
Re3 {[%clk 00:20:04]} {[%emt 00:02:11]} Nc7 {[%clk 00:10:50]} {[%emt 00:12:32]}
30. Ne1 {[%clk 00:16:53]} {[%emt 00:03:40]} Bg5 {[%clk 00:06:28]} {[%emt
00:04:53]} 31. f4 {[%clk 00:16:36]} {[%emt 00:00:46]} Be7 {[%clk 00:06:57]} 32.
Rf2 {[%clk 00:10:08]} {[%emt 00:06:59]} Nb5 {[%clk 00:03:26]} {[%emt 00:04:02]}
33. Bg2 {[%clk 00:08:25]} {[%emt 00:02:13]} Bxg2 {[%clk 00:02:44]} {[%emt
00:01:11]} 34. Kxg2 {[%clk 00:08:17]} {[%emt 00:00:38]} f5 {[%clk 00:02:31]}
{[%emt 00:00:43]} 35. Qd1 {[%clk 00:02:59]} {[%emt 00:05:48]} Kh7 {[%clk
00:01:27]} {[%emt 00:01:36]} 36. Rd3 {[%clk 00:01:46]} {[%emt 00:01:42]} Rg8
{[%clk 00:01:35]} {[%emt 00:00:22]} 37. Nf3 {[%clk 00:01:59]} {[%emt 00:00:17]}
g5 {[%clk 00:01:09]} {[%emt 00:00:56]} 38. Ng1 {[%clk 00:01:42]} {[%emt
00:00:46]} g4 {[%clk 00:01:23]} {[%emt 00:00:17]} 39. Rc2 {[%clk 00:01:48]}
{[%emt 00:00:23]} h5 {[%clk 00:01:15]} {[%emt 00:00:39]} 40. Ne2 {[%clk
00:31:52]} {[%emt 00:00:26]} Kg6 {[%clk 00:31:00]} {[%emt 00:00:45]} 41. Nc3
{[%clk 00:26:13]} {[%emt 00:06:08]} Kf7 {[%clk 00:22:40]} {[%emt 00:08:50]} 42.
Re2 {[%clk 00:16:48]} {[%emt 00:09:55]} Qa6 {[%clk 00:22:49]} {[%emt 00:00:22]}
43. Kf2 {[%clk 00:16:28]} {[%emt 00:00:48]} h4 {[%clk 00:19:17]} {[%emt
00:04:04]} 44. Ke3 {[%clk 00:15:16]} {[%emt 00:01:41]} Rh8 {[%clk 00:16:23]}
{[%emt 00:03:24]} 45. Kd2 {[%clk 00:12:10]} {[%emt 00:03:36]} hxg3 {[%clk
00:14:58]} {[%emt 00:01:56]} 46. hxg3 {[%clk 00:12:31]} {[%emt 00:00:08]} Rh3
{[%clk 00:11:44]} {[%emt 00:03:45]} 47. Kc2 {[%clk 00:11:30]} {[%emt 00:01:31]}
Rah8 {[%clk 00:11:20]} {[%emt 00:00:54]} 48. Rg2 {[%clk 00:09:56]} {[%emt
00:02:03]} Nc7 {[%clk 00:10:04]} {[%emt 00:01:47]} 49. Ne2 {[%clk 00:07:32]}
{[%emt 00:02:53]} Rh1 {[%clk 00:08:45]} {[%emt 00:01:49]} 50. Qd2 {[%clk
00:06:20]} {[%emt 00:01:42]} Na8 {[%clk 00:04:58]} {[%emt 00:04:18]} 51. Rc3
{[%clk 00:06:03]} {[%emt 00:00:46]} Qb7 {[%clk 00:02:28]} {[%emt 00:03:01]} 52.
Nc1 {[%clk 00:04:12]} {[%emt 00:02:20]} Nb6 {[%clk 00:02:55]} {[%emt 00:00:04]}
53. Kb1 {[%clk 00:04:12]} {[%emt 00:00:29]} Nc4 {[%clk 00:03:13]} {[%emt
00:00:12]} 54. Qe2 {[%clk 00:04:25]} {[%emt 00:00:17]} Qb5 {[%clk 00:03:19]}
{[%emt 00:00:24]} 55. Ka2 {[%clk 00:03:59]} {[%emt 00:00:56]} Bd8 {[%clk
00:03:23]} {[%emt 00:00:27]} 56. Nd3 {[%clk 00:03:37]} {[%emt 00:00:51]} Bb6
{[%clk 00:03:20]} {[%emt 00:00:33]} 57. Nc5 {[%clk 00:02:38]} {[%emt 00:01:28]}
Ke7 {[%clk 00:03:19]} {[%emt 00:00:32]} 58. Rc1 {[%clk 00:02:37]} {[%emt
00:00:31]} R1h3 {[%clk 00:02:09]} {[%emt 00:01:41]} 59. Bc3 {[%clk 00:02:50]}
{[%emt 00:00:17]} Ba7 {[%clk 00:01:38]} {[%emt 00:01:01]} 60. Re1 {[%clk
00:02:46]} {[%emt 00:00:33]} Nb6 {[%clk 00:00:46]} {[%emt 00:01:23]} 61. Bb2
{[%clk 00:02:23]} {[%emt 00:00:52]} Qc4+ {[%clk 00:01:01]} {[%emt 00:00:16]} 62.
Qxc4 {[%clk 00:02:39]} {[%emt 00:00:14]} dxc4 {[%clk 00:01:24]} {[%emt
00:00:07]} 63. Rc1 {[%clk 00:02:08]} {[%emt 00:01:00]} Rh2 {[%emt 00:02:01]} 64.
Rcg1 {[%clk 00:01:33]} Rxg2 {[%clk 00:00:46]} {[%emt 00:00:43]} 65. Rxg2 {[%clk
00:02:01]} {[%emt 00:00:01]} Rh1 {[%clk 00:01:15]} {[%emt 00:00:01]} 66. Bc3
{[%clk 00:01:51]} {[%emt 00:00:40]} Nd5 {[%clk 00:00:58]} {[%emt 00:00:47]} 67.
Kb2 {[%clk 00:00:54]} {[%emt 00:01:27]} Bxc5 {[%clk 00:01:23]} {[%emt
00:00:06]} 68. dxc5 {[%clk 00:01:11]} {[%emt 00:00:12]} Rf1 {[%clk 00:00:45]}
{[%emt 00:01:08]} 69. Rh2 {[%clk 00:00:36]} {[%emt 00:01:05]} Rf3 {[%clk
00:01:01]} {[%emt 00:00:14]} 70. Be1 {[%clk 00:00:53]} {[%emt 00:00:12]} Rb3+
{[%clk 00:01:05]} {[%emt 00:00:25]} 71. Ka2 {[%clk 00:01:14]} {[%emt 00:00:10]}
Re3 {[%clk 00:01:11]} {[%emt 00:00:24]} 72. Bf2 {[%clk 00:00:56]} {[%emt
00:00:49]} Re2+ {[%clk 00:01:35]} {[%emt 00:00:06]} 73. Kb1 {[%clk 00:01:18]}
{[%emt 00:00:07]} Kf7 {[%clk 00:00:56]} {[%emt 00:01:10]} 74. Kc1 {[%clk
00:01:27]} {[%emt 00:00:21]} Kg7 {[%clk 00:00:52]} {[%emt 00:00:34]} 75. Kd1
{[%clk 00:01:04]} {[%emt 00:00:52]} Ra2 {[%clk 00:01:00]} {[%emt 00:00:22]} 76.
Ke1 {[%clk 00:01:19]} {[%emt 00:00:15]} Rxa3 {[%clk 00:00:50]} {[%emt
00:00:40]} 77. b5 {[%clk 00:01:37]} {[%emt 00:00:12]} Ra1+ {[%clk 00:00:45]}
{[%emt 00:00:35]} 78. Kd2 {[%clk 00:01:57]} {[%emt 00:00:10]} Ra2+ {[%clk
00:01:04]} {[%emt 00:00:12]} 79. Ke1 {[%clk 00:02:08]} {[%emt 00:00:19]} cxb5
{[%clk 00:01:23]} {[%emt 00:00:11]} 80. c6 {[%clk 00:02:31]} {[%emt 00:00:07]}
c3 {[%clk 00:01:41]} {[%emt 00:00:12]} 0-1

[Event "Senior Men Russian Championship 2022_HL"]
[Site "Saint-Petersburg, Russia"]
[Date "2022.09.27"]
[Round "4.7"]
[White "Dragomarezkij, Evgeni"]
[Black "Berlin, Grigoriy"]
[Result "1-0"]
[TimeControl "40+30"]
[WhiteElo "2297"]
[BlackElo "2186"]

1. d4 {[%clk 01:30:58]} d5 {[%clk 01:30:51]} {[%emt 00:00:10]} 2. c4 {[%clk
01:31:23]} {[%emt 00:00:06]} c6 {[%clk 01:31:16]} {[%emt 00:00:05]} 3. e3
{[%clk 01:31:37]} {[%emt 00:00:15]} Nf6 {[%clk 01:31:25]} {[%emt 00:00:22]} 4.
Bd3 {[%clk 01:31:47]} {[%emt 00:00:19]} a6 {[%clk 01:30:37]} {[%emt 00:01:19]}
5. b3 {[%clk 01:31:32]} {[%emt 00:00:45]} Bg4 {[%clk 01:30:04]} {[%emt
00:01:03]} 6. Ne2 {[%clk 01:28:30]} {[%emt 00:03:32]} e6 {[%clk 01:28:53]}
{[%emt 00:01:40]} 7. Qc2 {[%clk 01:26:17]} {[%emt 00:02:43]} Bb4+ {[%clk
01:19:19]} {[%emt 00:10:04]} 8. Nbc3 {[%clk 01:18:47]} {[%emt 00:08:00]} Bxe2
{[%clk 01:17:17]} {[%emt 00:02:32]} 9. Kxe2 {[%clk 01:19:04]} {[%emt 00:00:14]}
c5 {[%clk 01:16:43]} {[%emt 00:01:03]} 10. dxc5 {[%clk 01:17:52]} {[%emt
00:01:43]} Nc6 {[%clk 01:05:42]} {[%emt 00:11:30]} 11. cxd5 {[%clk 01:16:25]}
{[%emt 00:01:57]} exd5 {[%clk 01:06:01]} {[%emt 00:00:11]} 12. Na4 {[%clk
01:15:27]} {[%emt 00:01:29]} Qe7 {[%clk 01:02:59]} {[%emt 00:03:31]} 13. Bb2
{[%clk 01:13:57]} {[%emt 00:01:59]} d4 {[%clk 00:55:47]} {[%emt 00:07:42]} 14.
e4 {[%clk 01:12:13]} {[%emt 00:02:14]} O-O {[%clk 00:54:17]} {[%emt 00:02:02]}
15. a3 {[%clk 01:07:13]} {[%emt 00:05:30]} Ba5 {[%clk 00:54:25]} {[%emt
00:00:21]} 16. Kf1 {[%clk 01:04:16]} {[%emt 00:03:27]} Rfe8 {[%clk 00:51:42]}
{[%emt 00:03:12]} 17. b4 {[%clk 01:03:20]} {[%emt 00:01:27]} Bc7 {[%clk
00:51:55]} {[%emt 00:00:16]} 18. Re1 {[%clk 01:03:12]} {[%emt 00:00:38]} Ng4
{[%clk 00:43:18]} {[%emt 00:09:07]} 19. g3 {[%clk 00:55:34]} {[%emt 00:08:08]}
Rad8 {[%clk 00:36:41]} {[%emt 00:07:07]} 20. h3 {[%clk 00:53:02]} {[%emt
00:03:03]} Nge5 {[%clk 00:35:19]} {[%emt 00:01:53]} 21. f4 {[%clk 00:53:11]}
{[%emt 00:00:21]} Nxd3 {[%clk 00:30:54]} {[%emt 00:04:55]} 22. Qxd3 {[%clk
00:53:31]} {[%emt 00:00:10]} g5 {[%clk 00:30:53]} {[%emt 00:00:31]} 23. Bc1
{[%clk 00:46:20]} {[%emt 00:07:41]} gxf4 {[%clk 00:29:24]} {[%emt 00:01:59]} 24.
gxf4 {[%clk 00:46:34]} {[%emt 00:00:16]} Kh8 {[%clk 00:28:32]} {[%emt
00:01:22]} 25. Rg1 {[%clk 00:26:43]} {[%emt 00:20:21]} Qf6 {[%clk 00:25:28]}
{[%emt 00:03:33]} 26. Ke2 {[%clk 00:21:29]} {[%emt 00:05:45]} Rg8 {[%clk
00:24:54]} {[%emt 00:01:03]} 27. e5 {[%clk 00:17:42]} {[%emt 00:04:17]} Qe6
{[%clk 00:18:02]} {[%emt 00:07:22]} 28. Kd1 {[%clk 00:17:42]} {[%emt 00:00:29]}
Ne7 {[%clk 00:12:33]} {[%emt 00:06:00]} 29. Nb2 {[%clk 00:16:01]} {[%emt
00:02:11]} f6 {[%clk 00:07:25]} {[%emt 00:05:38]} 30. Nc4 {[%clk 00:14:33]}
{[%emt 00:01:59]} fxe5 {[%clk 00:06:07]} {[%emt 00:01:48]} 31. fxe5 {[%clk
00:13:24]} {[%emt 00:01:38]} Nc6 {[%clk 00:05:57]} {[%emt 00:00:40]} 32. Bg5
{[%clk 00:12:55]} {[%emt 00:00:59]} Rdf8 {[%clk 00:03:56]} {[%emt 00:02:31]} 33.
Bf6+ {[%clk 00:13:11]} {[%emt 00:00:14]} Rxf6 {[%clk 00:04:19]} {[%emt
00:00:07]} 34. exf6 {[%clk 00:09:07]} {[%emt 00:04:34]} Qxf6 {[%clk 00:04:26]}
{[%emt 00:00:22]} 35. Rxg8+ {[%clk 00:08:45]} {[%emt 00:00:53]} Kxg8 {[%clk
00:04:55]} 36. Rg1+ {[%clk 00:08:35]} {[%emt 00:00:40]} Kh8 {[%clk 00:05:09]}
{[%emt 00:00:16]} 37. Qf1 {[%clk 00:06:11]} {[%emt 00:02:54]} Qe7 {[%clk
00:03:18]} {[%emt 00:02:21]} 38. Qf5 {[%clk 00:06:23]} {[%emt 00:00:18]} Bd8
{[%clk 00:02:52]} {[%emt 00:00:56]} 39. Nd6 {[%clk 00:05:15]} {[%emt 00:01:38]}
Ne5 {[%clk 00:02:58]} {[%emt 00:00:24]} 40. Qxe5+ {[%clk 00:35:33]} {[%emt
00:00:12]} 1-0

[Event "Senior Men Russian Championship 2022_HL"]
[Site "Saint-Petersburg, Russia"]
[Date "2022.09.27"]
[Round "4.8"]
[White "Vul, Arkadi Eremeevich"]
[Black "Filipenko, Alexander V"]
[Result "1/2-1/2"]
[TimeControl "40+30"]
[WhiteElo "2181"]
[BlackElo "2171"]

1. Nf3 {[%clk 01:30:43]} {[%emt 00:00:16]} d5 {[%clk 01:30:51]} {[%emt
00:00:09]} 2. d4 {[%clk 01:31:07]} {[%emt 00:00:07]} Nf6 {[%clk 01:31:15]}
{[%emt 00:00:06]} 3. c4 {[%clk 01:31:32]} {[%emt 00:00:05]} e6 {[%clk
01:31:39]} {[%emt 00:00:06]} 4. Nc3 {[%clk 01:31:52]} {[%emt 00:00:09]} c6
{[%clk 01:32:02]} {[%emt 00:00:07]} 5. e3 {[%clk 01:31:56]} {[%emt 00:00:27]}
Nbd7 {[%clk 01:32:23]} {[%emt 00:00:09]} 6. Bd3 {[%clk 01:26:02]} {[%emt
00:06:24]} dxc4 {[%clk 01:32:37]} {[%emt 00:00:16]} 7. Bxc4 {[%clk 01:26:30]}
{[%emt 00:00:02]} b5 {[%clk 01:32:58]} {[%emt 00:00:08]} 8. Bd3 {[%clk
01:24:27]} {[%emt 00:02:34]} Bb7 {[%clk 01:33:20]} {[%emt 00:00:07]} 9. O-O
{[%clk 01:23:14]} {[%emt 00:01:43]} a6 {[%clk 01:30:01]} {[%emt 00:03:50]} 10.
a4 {[%clk 01:17:22]} {[%emt 00:06:22]} b4 {[%clk 01:27:01]} {[%emt 00:03:30]}
11. Ne4 {[%clk 01:17:06]} {[%emt 00:00:46]} c5 {[%clk 01:24:03]} {[%emt
00:03:29]} 12. Nxf6+ {[%clk 01:16:35]} {[%emt 00:01:01]} Nxf6 {[%clk 01:17:25]}
{[%emt 00:07:06]} 13. dxc5 {[%clk 01:10:14]} {[%emt 00:06:52]} Ne4 {[%clk
01:01:00]} {[%emt 00:16:55]} 14. c6 {[%clk 00:47:33]} {[%emt 00:23:11]} Bxc6
{[%clk 01:01:14]} {[%emt 00:00:16]} 15. Ne5 {[%clk 00:26:59]} {[%emt 00:21:04]}
Bb7 {[%clk 00:45:33]} {[%emt 00:16:11]} 16. Nxf7 {[%clk 00:18:12]} {[%emt
00:09:18]} Kxf7 {[%clk 00:45:33]} {[%emt 00:00:29]} 17. Qf3+ {[%clk 00:18:40]}
{[%emt 00:00:01]} Qf6 {[%clk 00:45:40]} {[%emt 00:00:23]} 18. Bxe4 {[%clk
00:19:05]} {[%emt 00:00:05]} Qxf3 {[%clk 00:45:56]} {[%emt 00:00:14]} 19. Bxf3
{[%clk 00:17:07]} {[%emt 00:02:29]} Bxf3 {[%clk 00:46:12]} {[%emt 00:00:14]} 20.
gxf3 {[%clk 00:17:35]} {[%emt 00:00:01]} Be7 {[%clk 00:43:10]} {[%emt
00:03:33]} 21. e4 {[%clk 00:13:25]} {[%emt 00:04:39]} Bf6 {[%clk 00:34:01]}
{[%emt 00:09:39]} 22. Rb1 {[%clk 00:10:17]} {[%emt 00:03:39]} Rhd8 {[%clk
00:29:31]} {[%emt 00:05:00]} 23. Be3 {[%clk 00:09:58]} {[%emt 00:00:48]} Rac8
{[%clk 00:28:07]} {[%emt 00:01:54]} 24. f4 {[%clk 00:09:13]} {[%emt 00:01:16]}
Bd4 {[%clk 00:22:45]} {[%emt 00:05:51]} 25. Rfd1 {[%clk 00:08:00]} {[%emt
00:01:43]} Bxe3 {[%clk 00:22:05]} {[%emt 00:01:10]} 26. fxe3 {[%clk 00:08:13]}
{[%emt 00:00:18]} Kf6 {[%clk 00:17:58]} {[%emt 00:04:36]} 27. Rbc1 {[%clk
00:05:32]} {[%emt 00:03:11]} Rxc1 {[%clk 00:14:04]} {[%emt 00:04:24]} 28. Rxc1
{[%clk 00:06:00]} {[%emt 00:00:02]} Rd2 {[%clk 00:14:21]} {[%emt 00:00:11]} 29.
Rc6 {[%clk 00:05:35]} {[%emt 00:00:55]} g6 {[%clk 00:14:10]} {[%emt 00:00:42]}
30. Rxa6 {[%clk 00:05:41]} {[%emt 00:00:23]} Rxb2 {[%clk 00:14:28]} {[%emt
00:00:13]} 31. Rb6 {[%clk 00:05:29]} {[%emt 00:00:42]} Re2 {[%clk 00:13:24]}
{[%emt 00:01:34]} 32. Rxb4 {[%clk 00:05:47]} {[%emt 00:00:12]} Rxe3 {[%clk
00:13:46]} {[%emt 00:00:09]} 33. Kf2 {[%clk 00:03:14]} {[%emt 00:03:02]} Ra3
{[%clk 00:14:13]} {[%emt 00:00:02]} 34. Kg2 {[%clk 00:02:12]} {[%emt 00:01:33]}
g5 {[%emt 00:03:37]} 1/2-1/2

[Event "Senior Men Russian Championship 2022_HL"]
[Site "Saint-Petersburg, Russia"]
[Date "2022.09.27"]
[Round "4.10"]
[White "Nikitinyh, Boris"]
[Black "Zhelnin, Vladimir V"]
[Result "0-1"]
[TimeControl "40+30"]
[WhiteElo "1853"]
[BlackElo "2344"]

1. d4 {[%clk 01:30:55]} {[%emt 00:00:04]} g6 {[%clk 01:30:43]} {[%emt
00:00:16]} 2. e4 {[%clk 01:30:54]} {[%emt 00:00:32]} Bg7 {[%clk 01:31:05]}
{[%emt 00:00:08]} 3. Nf3 {[%clk 01:31:04]} {[%emt 00:00:19]} d6 {[%clk
01:31:14]} {[%emt 00:00:21]} 4. Be2 {[%clk 01:30:39]} {[%emt 00:00:56]} Nf6
{[%clk 01:30:52]} {[%emt 00:00:52]} 5. Nc3 {[%clk 01:30:45]} {[%emt 00:00:24]}
O-O {[%clk 01:30:51]} {[%emt 00:00:31]} 6. O-O {[%clk 01:30:37]} {[%emt
00:00:38]} a6 {[%clk 01:27:39]} {[%emt 00:03:44]} 7. Re1 {[%clk 01:27:12]}
{[%emt 00:03:54]} b5 {[%clk 01:19:15]} {[%emt 00:08:54]} 8. Bd3 {[%clk
01:25:58]} {[%emt 00:01:43]} b4 {[%clk 01:04:50]} {[%emt 00:14:56]} 9. Ne2
{[%clk 01:25:10]} {[%emt 00:01:17]} Bg4 {[%clk 01:02:12]} {[%emt 00:03:08]} 10.
Ng3 {[%clk 01:22:15]} {[%emt 00:03:26]} Nc6 {[%clk 00:57:22]} {[%emt 00:05:19]}
11. c3 {[%clk 01:19:57]} {[%emt 00:02:49]} bxc3 {[%clk 00:56:58]} {[%emt
00:00:54]} 12. bxc3 {[%clk 01:20:12]} {[%emt 00:00:14]} e5 {[%clk 00:56:45]}
{[%emt 00:00:44]} 13. d5 {[%clk 01:18:29]} {[%emt 00:02:13]} Ne7 {[%clk
00:57:02]} {[%emt 00:00:12]} 14. h3 {[%clk 01:18:36]} {[%emt 00:00:24]} Bd7
{[%clk 00:57:06]} {[%emt 00:00:27]} 15. Be3 {[%clk 01:17:52]} {[%emt 00:01:12]}
Ne8 {[%clk 00:54:25]} {[%emt 00:03:12]} 16. Qd2 {[%clk 01:15:50]} {[%emt
00:02:32]} f5 {[%clk 00:52:40]} {[%emt 00:02:15]} 17. exf5 {[%clk 01:09:29]}
{[%emt 00:06:51]} gxf5 {[%clk 00:48:16]} {[%emt 00:04:54]} 18. Bg5 {[%clk
01:06:51]} {[%emt 00:03:08]} Nf6 {[%clk 00:46:27]} {[%emt 00:02:19]} 19. Nh4
{[%clk 01:02:39]} {[%emt 00:04:41]} Qc8 {[%clk 00:36:42]} {[%emt 00:10:16]} 20.
Bc2 {[%clk 00:53:41]} {[%emt 00:09:27]} Rf7 {[%clk 00:29:18]} {[%emt 00:07:55]}
21. c4 {[%clk 00:52:20]} {[%emt 00:01:51]} f4 {[%clk 00:22:56]} {[%emt
00:06:52]} 22. Nf1 {[%clk 00:47:01]} {[%emt 00:05:48]} h6 {[%clk 00:21:08]}
{[%emt 00:02:18]} 23. Bxf6 {[%clk 00:45:32]} {[%emt 00:01:59]} Bxf6 {[%clk
00:21:16]} {[%emt 00:00:23]} 24. Nf3 {[%clk 00:45:12]} {[%emt 00:00:49]} Bxh3
{[%clk 00:19:07]} {[%emt 00:02:39]} 25. Ng3 {[%clk 00:40:49]} {[%emt 00:04:53]}
Bg4 {[%clk 00:15:45]} {[%emt 00:03:52]} 26. Nh2 {[%clk 00:36:52]} {[%emt
00:04:27]} fxg3 {[%clk 00:15:37]} {[%emt 00:00:39]} 27. fxg3 {[%clk 00:36:49]}
{[%emt 00:00:32]} Bg5 {[%clk 00:14:58]} {[%emt 00:01:08]} 28. Qc3 {[%clk
00:36:14]} {[%emt 00:01:06]} Bf5 {[%clk 00:13:44]} {[%emt 00:01:43]} 29. Nf3
{[%clk 00:35:53]} {[%emt 00:00:51]} Bxc2 {[%clk 00:13:08]} {[%emt 00:01:07]} 30.
Qxc2 {[%clk 00:35:46]} {[%emt 00:00:37]} Qf5 {[%clk 00:13:19]} {[%emt
00:00:19]} 31. Qe2 {[%clk 00:35:43]} {[%emt 00:00:34]} Qg4 {[%clk 00:12:16]}
{[%emt 00:01:31]} 32. Nxg5 {[%clk 00:35:00]} {[%emt 00:01:13]} Qxg5 {[%clk
00:12:23]} {[%emt 00:00:24]} 33. g4 {[%clk 00:33:55]} {[%emt 00:01:35]} Raf8
{[%clk 00:10:20]} {[%emt 00:02:33]} 34. Rad1 {[%clk 00:34:03]} {[%emt
00:00:22]} Ng6 {[%clk 00:10:11]} {[%emt 00:00:40]} 0-1

[Event "Senior Men Russian Championship 2022_HL"]
[Site "Saint-Petersburg, Russia"]
[Date "2022.09.27"]
[Round "4.11"]
[White "Kornilov, Anatoly"]
[Black "Yakovlev, Yuri S."]
[Result "1-0"]
[TimeControl "40+30"]
[WhiteElo "2094"]
[BlackElo "1649"]

1. d4 {[%clk 01:30:55]} {[%emt 00:00:04]} c5 {[%clk 01:30:57]} {[%emt
00:00:04]} 2. d5 {[%clk 01:31:11]} {[%emt 00:00:14]} e5 {[%clk 01:31:22]}
{[%emt 00:00:04]} 3. c4 {[%clk 01:31:20]} {[%emt 00:00:22]} d6 {[%clk
01:31:46]} {[%emt 00:00:05]} 4. e4 {[%clk 01:31:39]} {[%emt 00:00:11]} f5
{[%clk 01:31:46]} {[%emt 00:00:31]} 5. Nc3 {[%clk 01:31:45]} {[%emt 00:00:24]}
Nf6 {[%clk 01:31:30]} {[%emt 00:00:46]} 6. Bd3 {[%clk 01:31:35]} {[%emt
00:00:40]} f4 {[%clk 01:30:22]} {[%emt 00:01:38]} 7. g3 {[%clk 01:30:38]}
{[%emt 00:01:26]} fxg3 {[%clk 01:28:19]} {[%emt 00:02:33]} 8. hxg3 {[%clk
01:30:47]} {[%emt 00:00:21]} Na6 {[%clk 01:26:07]} {[%emt 00:02:42]} 9. f3
{[%clk 01:30:41]} {[%emt 00:00:36]} Bd7 {[%clk 01:23:41]} {[%emt 00:02:56]} 10.
Be3 {[%clk 01:29:28]} {[%emt 00:01:42]} Be7 {[%clk 01:20:08]} {[%emt 00:04:04]}
11. Qd2 {[%clk 01:29:31]} {[%emt 00:00:27]} Qc8 {[%clk 01:18:53]} {[%emt
00:01:45]} 12. O-O-O {[%clk 01:28:40]} {[%emt 00:01:22]} Nc7 {[%clk 01:16:25]}
{[%emt 00:02:57]} 13. g4 {[%clk 01:27:31]} {[%emt 00:01:40]} Kd8 {[%clk
01:13:39]} {[%emt 00:03:15]} 14. Nge2 {[%clk 01:23:56]} {[%emt 00:04:05]} a6
{[%clk 01:13:39]} {[%emt 00:00:32]} 15. Ng3 {[%clk 01:24:08]} {[%emt 00:00:17]}
b5 {[%clk 01:11:40]} {[%emt 00:02:29]} 16. Nf5 {[%clk 01:24:14]} {[%emt
00:00:23]} b4 {[%clk 01:08:27]} {[%emt 00:03:44]} 17. Ne2 {[%clk 01:24:26]}
{[%emt 00:00:17]} Bxf5 {[%clk 01:01:22]} {[%emt 00:07:36]} 18. exf5 {[%clk
01:24:39]} {[%emt 00:00:16]} Nce8 {[%clk 00:59:57]} {[%emt 00:01:56]} 19. Rh2
{[%clk 01:24:05]} {[%emt 00:01:03]} e4 {[%clk 00:55:01]} {[%emt 00:05:25]} 20.
Bxe4 {[%clk 01:24:16]} {[%emt 00:00:20]} Nxe4 {[%clk 00:55:29]} {[%emt
00:00:03]} 21. fxe4 {[%clk 01:24:20]} {[%emt 00:00:25]} Nf6 {[%clk 00:53:20]}
{[%emt 00:02:38]} 22. Nf4 {[%clk 01:24:12]} {[%emt 00:00:38]} Kc7 {[%clk
00:50:07]} {[%emt 00:03:44]} 23. Ne6+ {[%clk 01:23:18]} {[%emt 00:01:25]} Kb6
{[%clk 00:47:59]} {[%emt 00:02:38]} 24. Qg2 {[%clk 01:23:33]} {[%emt 00:00:14]}
Nd7 {[%clk 00:44:04]} {[%emt 00:04:25]} 25. Bf4 {[%clk 01:23:00]} {[%emt
00:01:04]} Ra7 {[%clk 00:43:00]} {[%emt 00:01:33]} 26. g5 {[%clk 01:21:48]}
{[%emt 00:01:41]} Bf8 {[%clk 00:39:32]} {[%emt 00:03:59]} 27. Qc2 {[%clk
01:18:12]} {[%emt 00:04:05]} Ne5 {[%clk 00:37:47]} {[%emt 00:02:16]} 28. Bxe5
{[%clk 01:16:26]} {[%emt 00:02:16]} dxe5 {[%clk 00:35:21]} {[%emt 00:02:56]} 29.
Qa4 {[%clk 01:15:46]} {[%emt 00:01:09]} Bd6 {[%clk 00:31:04]} {[%emt 00:04:47]}
30. Rdh1 {[%clk 01:15:52]} {[%emt 00:00:25]} Qd7 {[%clk 00:30:32]} {[%emt
00:01:03]} 31. Qxd7 {[%clk 01:16:10]} {[%emt 00:00:12]} Rxd7 {[%clk 00:30:49]}
{[%emt 00:00:13]} 32. Rxh7 {[%clk 01:16:34]} {[%emt 00:00:06]} Rg8 {[%clk
00:30:10]} {[%emt 00:01:09]} 33. Rh8 {[%clk 01:16:31]} {[%emt 00:00:33]} Rxh8
{[%clk 00:29:32]} {[%emt 00:01:08]} 34. Rxh8 {[%clk 01:16:58]} {[%emt
00:00:03]} 1-0